bitfinex/quotes_ETHUSD_20220201
["timestamp","ask_amount","ask_price","bid_price","bid_amount"]
[1643710670163,0.01206126,2723.7,2722.6,0.1834]
[1643710670361,0.01206126,2723.7,2722.6,0.4834]
[1643710670560,0.01206126,2723.7,2722.6,0.1834]
[1643710670763,0.34916841,2723.5,2722.6,0.1834]
[1643710670962,0.44456878,2722.8,2722.3,0.77126264]
[1643710671161,2.2814969,2723.6,2722.3,0.77126264]
[1643710671960,4.9623,2723.5,2722.3,0.77126264]
[1643710672563,4.9623,2723.5,2722.3,1.37126264]
[1643710673424,4.9623,2723.5,2722.8,0.68210912]
[1643710673628,4.9623,2723.5,2722.8,0.98210912]
[1643710674026,2.3797,2724.1,2722.9,0.18738403]
[1643710674228,5.1463,2724.0,2722.9,0.439]
[1643710674431,7.27029433,2724.0,2722.9,0.439]
[1643710674631,0.01267206,2723.8,2722.8,0.3]
[1643710674936,0.1836,2723.7,2722.2,0.439]
[1643710675134,0.1836,2723.7,2722.4,0.146867]
[1643710675438,0.1836,2723.7,2722.4,3.67121562]
[1643710675832,0.1836,2723.7,2722.5,1.0]
[1643710676031,0.01267206,2723.8,2722.5,1.4836]
[1643710676232,5.1465,2724.0,2722.5,3.18411628]
[1643710676437,5.46712636,2724.0,2723.4,0.85971771]
[1643710676862,5.28352636,2724.0,2723.4,0.85971771]
[1643710677260,5.28352636,2724.0,2722.9,0.439]
[1643710677469,5.28352636,2724.0,2723.0,0.3]
[1643710677863,5.28352636,2724.0,2723.0,0.1834]
[1643710677864,2.29396224,2723.9,2723.0,0.1834]
[1643710678064,0.19606534,2723.9,2723.0,0.1834]
[1643710678666,0.1834,2723.9,2723.0,0.1834]
[1643710679475,4.9629,2724.0,2723.9,0.77026686]
[1643710679670,4.9629,2724.0,2723.2,1.83515]
[1643710679867,4.9629,2724.0,2723.5,0.3]
[1643710680267,4.96171721,2724.0,2723.3,0.3]
[1643710680543,4.96171721,2724.0,2723.5,0.38763748]
[1643710680739,4.96171721,2724.0,2723.9,0.97920408]
[1643710681140,0.1834,2724.5,2723.9,0.97920408]
[1643710682239,0.36646937,2724.4,2723.9,0.97920408]
[1643710682440,0.1834,2724.5,2723.9,0.97920408]
[1643710682742,0.1834,2724.5,2723.9,0.3]
[1643710682949,16.65399997,2725.1,2724.0,1.35642]
[1643710683147,11.14279997,2725.1,2724.0,1.35642]
[1643710683346,11.14279997,2725.1,2724.1,0.60431653]
[1643710683546,11.0046,2725.1,2724.5,0.35752597]
[1643710683750,9.8501,2725.1,2724.2,0.439]
[1643710683944,9.8501,2725.1,2724.7,0.80193999]
[1643710684147,9.8501,2725.1,2724.7,1.10193999]
[1643710684148,4.8458,2725.1,2724.7,1.10193999]
[1643710684585,4.8458,2725.1,2724.7,0.80193999]
[1643710684984,4.8458,2725.1,2724.7,1.10193999]
[1643710685183,0.01241689,2725.5,2724.7,1.10193999]
[1643710685581,0.01241689,2725.5,2724.8,0.439]
[1643710685781,0.01241689,2725.5,2724.8,0.8850965]
[1643710685983,0.01241689,2725.5,2724.8,0.739]
[1643710686381,5.3781,2725.8,2724.8,1.65613]
[1643710686583,5.1947,2725.8,2724.9,0.3]
[1643710687384,5.52543224,2725.8,2725.2,0.92132581]
[1643710687583,5.52543224,2725.8,2724.9,0.3]
[1643710688026,5.1947,2725.8,2724.9,0.3]
[1643710688230,5.1947,2725.8,2725.1,0.91699]
[1643710688425,5.1947,2725.8,2725.2,0.439]
[1643710688624,5.1947,2725.8,2725.3,0.91697]
[1643710688823,5.1947,2725.8,2725.4,0.439]
[1643710689024,5.1947,2725.8,2725.6,0.74216718]
[1643710689223,5.1947,2725.8,2725.6,1.04216718]
[1643710689427,5.1947,2725.8,2725.6,0.3]
[1643710689828,5.1947,2725.8,2725.4,1.739]
[1643710690229,5.1947,2725.8,2725.5,0.3]
[1643710690428,5.1947,2725.8,2725.2,0.439]
[1643710690830,5.1947,2725.8,2724.8,0.1834]
[1643710690831,5.1947,2725.8,2724.8,0.6224]
[1643710691034,5.1947,2725.8,2724.7,0.91722]
[1643710691035,0.1834,2725.7,2724.7,0.91722]
[1643710691630,0.32199831,2725.2,2724.7,0.91722]
[1643710692489,0.1834,2725.7,2724.7,3.13439]
[1643710692690,5.1947,2725.8,2725.1,3.0]
[1643710692891,5.1947,2725.8,2725.3,0.917]
[1643710693589,5.1947,2725.8,2725.3,1.217]
[1643710694395,5.1947,2725.8,2725.3,0.3]
[1643710694795,5.1947,2725.8,2725.2,2.03212173]
[1643710695630,5.1947,2725.8,2725.2,2.33212173]
[1643710695833,5.19349915,2725.8,2725.2,2.33212173]
[1643710696627,5.19349915,2725.8,2725.4,0.91698]
[1643710697032,0.01261519,2726.4,2725.5,0.3]
[1643710697232,1.45289997,2726.6,2725.7,1.83367]
[1643710697433,0.1834,2727.1,2725.8,0.439]
[1643710697634,0.19614388,2727.2,2725.8,0.6222]
[1643710697833,0.19614388,2727.2,2725.8,1.04198778]
[1643710697834,0.01294388,2727.2,2725.8,1.04198778]
[1643710698029,0.09614388,2727.3,2726.6,1.31167802]
[1643710698236,0.09614388,2727.3,2726.6,0.9166]
[1643710698438,4.7076,2727.5,2726.6,1.2166]
[1643710698632,0.1832,2727.4,2726.6,1.2166]
[1643710699285,0.1832,2727.4,2726.7,0.439]
[1643710699490,4.7076,2727.5,2726.7,0.439]
[1643710699697,4.7076,2727.5,2726.7,0.739]
[1643710699889,4.7076,2727.5,2726.7,0.439]
[1643710699890,6.79458608,2727.5,2726.7,0.439]
[1643710700092,0.95636379,2727.4,2726.2,0.90423583]
[1643710700292,2.03698608,2727.3,2726.1,0.739]
[1643710700492,0.3668,2727.2,2726.1,0.439]
[1643710700689,0.3668,2727.2,2726.1,0.739]
[1643710700690,0.3810076,2726.9,2726.1,0.739]
[1643710700889,0.1832,2727.2,2726.1,0.739]
[1643710701099,0.1832,2727.2,2726.1,1.039]
[1643710701291,0.1832,2727.2,2726.3,0.91673]
[1643710701490,4.7076,2727.5,2726.4,0.739]
[1643710701689,4.7076,2727.5,2726.4,1.039]
[1643710701891,4.7076,2727.5,2726.6,0.39228377]
[1643710702190,2.07075757,2727.4,2726.6,0.3]
[1643710702389,2.07075757,2727.4,2726.4,1.039]
[1643710702590,4.7076,2727.5,2726.4,2.039]
[1643710702792,0.1832,2727.4,2726.4,0.439]
[1643710703026,0.32032802,2727.3,2726.4,0.82646702]
[1643710703226,0.1832,2727.4,2726.4,0.82646702]
[1643710703826,0.1832,2727.4,2726.4,0.439]
[1643710704332,0.1832,2727.4,2726.5,0.91658]
[1643710704532,4.7076,2727.5,2726.5,0.91658]
[1643710704733,0.1832,2727.4,2726.5,1.21658]
[1643710704933,0.38202359,2727.4,2726.5,1.21658]
[1643710705133,2.45582913,2727.4,2726.5,1.21658]
[1643710705335,0.38202359,2727.4,2726.5,1.65558]
[1643710705535,2.42736792,2727.4,2726.5,1.65558]
[1643710705734,0.38202359,2727.4,2726.5,1.65558]
[1643710705936,2.42982225,2727.4,2726.5,1.65558]
[1643710706141,2.42982225,2727.4,2726.1,3.66625]
[1643710706142,0.1832,2727.3,2725.8,0.439]
[1643710706339,0.1832,2727.3,2725.6,0.1832]
[1643710706340,0.01266121,2726.8,2725.6,0.1832]
[1643710706536,0.1834,2726.7,2725.5,0.439]
[1643710707099,0.1834,2726.7,2725.8,0.87260047]
[1643710707295,0.1834,2727.0,2725.8,0.87260047]
[1643710707700,0.1832,2727.2,2725.9,0.6222]
[1643710707897,7.36558608,2727.8,2726.3,0.0123279]
[1643710708095,0.28855398,2728.1,2726.3,0.0123279]
[1643710708096,2.35605751,2728.1,2726.5,21.39]
[1643710708301,3.2547592,2728.1,2726.8,0.83123053]
[1643710708494,3.4379592,2728.1,2726.9,0.439]
[1643710708699,2.35605751,2728.1,2726.9,0.439]
[1643710708894,0.1832,2728.0,2726.9,0.439]
[1643710709094,0.43004326,2727.9,2727.0,0.3218543]
[1643710709297,0.43004326,2727.9,2727.0,0.6218543]
[1643710709699,0.43004326,2727.9,2727.0,0.3]
[1643710710100,0.1832,2728.0,2727.1,0.91639]
[1643710710300,0.26907143,2728.1,2727.2,0.3]
[1643710710734,0.26907143,2728.1,2727.3,0.3]
[1643710710936,0.26907143,2728.1,2727.4,0.69600712]
[1643710711134,0.26907143,2728.1,2727.5,0.91624]
[1643710711350,0.13087146,2728.1,2727.6,0.739]
[1643710711535,5.0954,2728.6,2727.6,0.739]
[1643710711734,5.0954,2728.6,2727.6,2.039]
[1643710712536,5.0954,2728.6,2727.6,2.95519]
[1643710712935,5.0954,2728.6,2727.9,0.78721053]
[1643710713137,5.0954,2728.6,2728.0,0.439]
[1643710713536,5.0954,2728.6,2727.8,1.0]
[1643710713737,5.0954,2728.6,2727.7,0.1832]
[1643710713939,0.34033475,2728.5,2727.7,0.1832]
[1643710714138,0.52353475,2728.5,2727.7,0.1832]
[1643710714405,0.1832,2728.5,2727.7,0.1832]
[1643710714610,0.1832,2728.5,2727.7,1.10293291]
[1643710714804,0.1832,2728.5,2727.7,0.1832]
[1643710715204,5.10795408,2728.6,2727.7,0.1832]
[1643710715403,0.1832,2728.5,2727.7,0.1832]
[1643710716707,0.1832,2728.5,2727.2,0.1832]
[1643710716708,0.35840278,2728.0,2727.2,0.1832]
[1643710716908,0.35840278,2728.0,2726.5,2.75621851]
[1643710716909,2.35647889,2727.9,2726.5,1.54609851]
[1643710717106,0.1832,2727.8,2726.5,1.36289851]
[1643710717304,0.1832,2727.8,2726.5,0.44632851]
[1643710717305,0.1836,2727.7,2726.5,0.44632851]
[1643710717504,0.1832,2727.6,2726.5,0.44632851]
[1643710717705,0.18150949,2727.6,2726.5,0.44632851]
[1643710718632,0.1836,2727.5,2726.5,0.44632851]
[1643710718834,0.1832,2727.4,2726.5,0.44632851]
[1643710719037,0.38929377,2727.2,2726.5,0.44632851]
[1643710719234,0.1832,2727.1,2726.5,0.00732851]
[1643710719636,6.8921697,2727.4,2726.0,0.91673]
[1643710719637,2.4463697,2727.3,2726.0,0.91673]
[1643710719837,2.4463697,2727.3,2726.0,1.21673]
[1643710720445,2.4463697,2727.3,2725.8,0.1832]
[1643710720446,0.33061918,2726.6,2725.8,0.1832]
[1643710720643,2.05265428,2726.5,2725.6,1.0265072]
[1643710720840,2.56408075,2726.8,2725.6,0.1834]
[1643710721039,5.2583,2726.8,2725.4,1.83368]
[1643710721245,5.0749,2726.8,2725.5,0.6224]
[1643710721441,5.0749,2726.8,2725.5,1.53933]
[1643710721898,5.0749,2726.8,2726.0,0.92523135]
[1643710722097,0.01251604,2726.7,2725.9,0.91679]
[1643710722401,0.01251604,2726.7,2725.9,1.39999]
[1643710722596,0.01251604,2726.7,2725.9,0.4832]
[1643710722816,5.0749,2726.8,2725.9,0.4832]
[1643710722996,5.0749,2726.8,2725.9,0.3]
[1643710723196,5.0749,2726.8,2725.8,0.439]
[1643710723400,5.0749,2726.8,2725.9,0.96750111]
[1643710723801,5.0749,2726.8,2725.9,1.26750111]
[1643710723998,5.0749,2726.8,2725.9,0.4832]
[1643710724805,2.04884222,2726.7,2725.9,0.4832]
[1643710725005,2.07041959,2726.7,2725.9,1.29986481]
[1643710725202,2.06715188,2726.7,2725.9,1.29986481]
[1643710725405,0.3940535,2727.0,2725.9,1.29986481]
[1643710725630,0.3940535,2727.0,2725.9,2.21661481]
[1643710725832,0.3940535,2727.0,2725.9,3.21661481]
[1643710726432,1.49027146,2727.3,2725.9,3.21661481]
[1643710726635,1.49027146,2727.3,2726.1,0.91669]
[1643710726836,3.56984116,2727.3,2726.2,0.439]
[1643710727135,0.1832,2727.3,2726.3,0.91665]
[1643710727336,4.8126,2727.4,2726.5,0.78568136]
[1643710727633,4.8126,2727.4,2726.6,0.439]
[1643710727837,4.8126,2727.4,2726.7,0.1832]
[1643710728033,4.8126,2727.4,2726.8,0.439]
[1643710728330,4.8126,2727.4,2726.9,0.439]
[1643710728532,4.8126,2727.4,2726.9,2.04368845]
[1643710728931,4.8126,2727.4,2726.9,1.65544]
[1643710729131,4.8126,2727.4,2726.9,2.5719]
[1643710729380,4.8126,2727.4,2726.9,2.2719]
[1643710729577,4.8126,2727.4,2726.9,1.65546]
[1643710730381,4.8126,2727.4,2726.9,0.739]
[1643710730580,4.8126,2727.4,2726.9,0.439]
[1643710730581,0.36255516,2727.3,2726.9,0.439]
[1643710730780,4.8126,2727.4,2726.9,0.439]
[1643710731990,0.1832,2727.3,2726.9,0.439]
[1643710732182,0.37174791,2727.2,2726.3,1.83307]
[1643710732383,0.37174791,2727.2,2726.2,0.439]
[1643710733236,0.1832,2727.3,2726.2,1.90314437]
[1643710733437,0.1832,2727.3,2726.3,1.83332]
[1643710733636,4.8126,2727.4,2726.4,0.439]
[1643710733937,2.96010281,2727.3,2726.4,0.439]
[1643710734138,0.1832,2727.2,2726.2,0.3]
[1643710734340,0.1832,2727.2,2726.0,0.6]
[1643710734545,0.1832,2727.2,2725.9,1.18130015]
[1643710734546,0.42983096,2726.3,2725.9,1.18130015]
[1643710734744,0.42983096,2726.3,2725.6,0.439]
[1643710734944,0.42983096,2726.3,2725.4,0.3114]
[1643710735143,0.42848775,2726.3,2725.4,0.3114]
[1643710736141,0.42848775,2726.3,2725.5,0.91691]
[1643710736342,0.42848775,2726.3,2725.4,0.3114]
[1643710736545,2.0795697,2726.2,2725.4,0.3114]
[1643710736785,0.1834,2726.1,2725.4,0.3114]
[1643710738884,0.34550572,2725.9,2725.4,0.3114]
[1643710739886,0.32169434,2725.9,2725.4,0.3114]
[1643710740934,0.22262803,2725.9,2725.4,0.3114]
[1643710741139,5.1354,2726.2,2725.4,1.2284]
[1643710741537,5.1354,2726.2,2725.4,2.14538]
[1643710741738,5.1354,2726.2,2725.4,2.44538]
[1643710741940,5.1354,2726.2,2725.6,0.20872569]
[1643710742137,5.53803612,2726.7,2725.8,0.57717342]
[1643710742340,5.1205,2726.7,2725.9,1.48165749]
[1643710742537,5.1205,2726.7,2725.9,1.66505749]
[1643710742741,5.1205,2726.7,2725.9,1.96505749]
[1643710742938,5.1205,2726.7,2726.0,0.20872569]
[1643710743141,5.1205,2726.7,2726.2,0.20872569]
[1643710743341,5.1205,2726.7,2726.3,0.20872569]
[1643710744587,5.1205,2726.7,2726.4,0.73482907]
[1643710744786,5.1205,2726.7,2726.5,0.20872569]
[1643710746387,4.7885,2727.1,2726.5,0.20872569]
[1643710746587,4.9184,2727.1,2726.5,0.20872569]
[1643710746986,2.07095037,2727.0,2726.5,0.20872569]
[1643710747187,1.95064371,2727.0,2726.5,0.20872569]
[1643710747387,4.9184,2727.1,2726.5,0.20872569]
[1643710747593,2.04634973,2727.0,2726.5,0.20872569]
[1643710748038,5.78231691,2727.1,2726.5,0.20872569]
[1643710748241,2.22814155,2727.0,2726.0,0.1832]
[1643710748443,0.1832,2726.9,2725.9,0.20872569]
[1643710748640,0.35570777,2726.6,2725.9,0.20872569]
[1643710748840,0.1832,2726.9,2725.9,0.20872569]
[1643710749244,0.1832,2726.9,2726.1,0.20872569]
[1643710749446,2.14019917,2727.0,2726.1,0.20872569]
[1643710749645,5.1016,2727.1,2726.1,0.20872569]
[1643710749646,0.1832,2726.9,2726.1,0.20872569]
[1643710749847,4.9184,2727.1,2726.7,0.20872569]
[1643710750050,4.9184,2727.1,2726.7,1.02480423]
[1643710750454,4.9184,2727.1,2726.7,0.20872569]
[1643710752077,4.9184,2727.1,2726.9,0.20872569]
[1643710753280,4.9184,2727.1,2726.7,0.20872569]
[1643710754082,4.9184,2727.1,2726.7,1.11675814]
[1643710754892,4.9184,2727.1,2726.7,0.20872569]
[1643710755091,4.91685015,2727.1,2726.7,0.20872569]
[1643710756027,4.91685015,2727.1,2726.6,2.31128112]
[1643710756028,4.91685015,2727.1,2726.9,0.20872569]
[1643710757728,2.6,2726.9,2726.4,1.6222]
[1643710757936,2.05555571,2726.8,2726.5,0.376007]
[1643710758130,2.55165644,2727.0,2726.5,0.376007]
[1643710758330,2.55165644,2727.0,2726.1,0.6686473]
[1643710758331,0.1832,2726.9,2726.6,0.376007]
[1643710758731,2.22194988,2726.9,2726.6,0.376007]
[1643710761297,0.1836,2726.7,2726.6,0.376007]
[1643710761498,0.3668,2726.7,2726.6,0.376007]
[1643710761700,2.66770239,2726.7,2726.6,0.376007]
[1643710761896,0.3668,2726.7,2726.6,0.376007]
[1643710762097,2.41556594,2726.7,2726.6,0.376007]
[1643710762298,2.38522455,2726.7,2725.6,0.80510433]
[1643710762497,0.9170274,2726.5,2725.6,0.80510433]
[1643710763327,2.03915603,2726.6,2725.6,0.80510433]
[1643710763528,0.35195235,2726.4,2725.6,0.80510433]
[1643710763729,0.91703,2726.8,2725.6,0.80510433]
[1643710763930,1.10043,2726.8,2725.6,0.98850433]
[1643710764332,2.01446004,2726.7,2725.6,0.98850433]
[1643710764532,1.10043,2726.8,2725.6,0.80510433]
[1643710764735,0.43451502,2726.3,2725.6,0.80510433]
[1643710765136,3.23618577,2726.7,2725.6,0.80510433]
[1643710765334,1.1003478,2726.7,2725.6,0.80510433]
[1643710765642,4.91685015,2727.1,2725.8,0.9169]
[1643710765836,4.91685015,2727.1,2725.9,0.6222]
[1643710766237,0.35846193,2726.8,2725.9,0.6222]
[1643710766441,4.91685015,2727.1,2725.9,0.6222]
[1643710766636,4.91685015,2727.1,2726.4,0.66927794]
[1643710767696,4.91685015,2727.1,2726.4,1.58601794]
[1643710770404,4.91685015,2727.1,2726.4,0.66927794]
[1643710771425,4.91685015,2727.1,2726.3,1.03667975]
[1643710771623,4.91685015,2727.1,2726.3,0.03667975]
[1643710772423,4.91685015,2727.1,2726.5,0.89418612]
[1643710772623,4.91685015,2727.1,2726.5,1.81087612]
[1643710773629,5.24119621,2727.1,2726.5,2.81087612]
[1643710773827,4.91685015,2727.1,2726.5,1.81087612]
[1643710774282,4.91685015,2727.1,2726.5,2.81087612]
[1643710774482,4.91685015,2727.1,2726.5,1.81087612]
[1643710774883,4.91685015,2727.1,2726.5,2.81087612]
[1643710775182,4.91685015,2727.1,2726.5,1.81087612]
[1643710776089,4.91685015,2727.1,2726.5,0.91669]
[1643710776485,4.91685015,2727.1,2726.3,0.03667975]
[1643710777087,4.91685015,2727.1,2726.4,0.75564964]
[1643710778130,4.91685015,2727.1,2726.3,0.03667975]
[1643710779029,0.44596014,2726.9,2726.4,0.91674]
[1643710779232,0.44596014,2726.9,2726.3,0.03667975]
[1643710779436,4.91685015,2727.1,2726.3,0.03667975]
[1643710780534,4.91685015,2727.1,2726.4,0.91682]
[1643710780736,4.91685015,2727.1,2726.5,2.36141]
[1643710780937,4.91685015,2727.1,2726.6,1.83309]
[1643710781144,4.91685015,2727.1,2726.7,0.528]
[1643710781338,4.91483596,2727.1,2726.7,0.528]
[1643710781788,4.91483596,2727.1,2726.7,1.41584737]
[1643710782195,4.91483596,2727.1,2726.7,2.41584737]
[1643710782596,4.91483596,2727.1,2726.7,3.39314737]
[1643710784002,4.0,2727.5,2726.8,0.91654]
[1643710784301,0.3668,2728.0,2727.0,5.95]
[1643710784507,0.00291094,2728.5,2727.3,6.83749878]
[1643710784811,0.00291094,2728.5,2727.9,0.01208787]
[1643710784812,0.36398595,2728.5,2727.9,0.01208787]
[1643710785006,0.36398595,2728.5,2728.4,0.28]
[1643710785202,0.36398595,2728.5,2728.4,0.808]
[1643710785546,1.91116721,2728.5,2728.0,0.1832]
[1643710785753,0.01299231,2728.7,2728.1,2.35998]
[1643710786150,0.01299231,2728.7,2728.2,0.91618]
[1643710786356,2.2479,2729.3,2728.3,0.528]
[1643710786550,1.54711461,2729.2,2728.4,0.91617]
[1643710786752,0.1832,2729.1,2728.4,0.91617]
[1643710786955,0.01245649,2728.5,2727.2,1.0]
[1643710787153,0.0124519,2727.8,2726.9,3.66479]
[1643710787352,0.1832,2727.7,2726.9,3.66479]
[1643710787551,0.0124519,2727.8,2727.0,0.91661]
[1643710787958,0.39332542,2727.8,2727.0,0.91661]
[1643710788154,0.39332542,2727.8,2727.1,0.9139768]
[1643710788554,0.39332542,2727.8,2727.0,0.91661]
[1643710789887,0.91668,2727.7,2727.0,0.91661]
[1643710792690,0.91658,2727.9,2727.0,1.8332]
[1643710793138,0.91658,2727.9,2727.0,2.8332]
[1643710793339,0.91658,2727.9,2727.0,1.8332]
[1643710793541,0.91658,2727.9,2727.0,2.8332]
[1643710793739,0.34020519,2727.7,2727.0,2.8332]
[1643710794742,0.91658,2727.9,2727.0,2.8332]
[1643710794947,1.28294,2728.1,2727.2,0.9165]
[1643710795144,1.28294,2728.1,2727.3,0.91654]
[1643710795747,0.36644,2728.1,2727.3,0.91654]
[1643710795947,0.34641066,2727.7,2727.3,0.91654]
[1643710796347,0.18324,2728.1,2727.3,0.91654]
[1643710796550,0.18324,2728.1,2727.4,1.85993136]
[1643710796551,0.18205975,2728.1,2727.4,1.85993136]
[1643710796797,3.9878,2728.2,2727.5,0.91635]
[1643710797291,0.44522824,2728.1,2727.5,1.91635]
[1643710797696,0.44522824,2728.1,2727.6,0.528]
[1643710798297,0.44522824,2728.1,2727.7,0.91637]
[1643710798699,0.44522824,2728.1,2727.4,1.83269]
[1643710799498,0.4229132,2727.6,2727.4,1.83269]
[1643710799712,3.1184967,2728.4,2727.6,0.9164]
[1643710799908,2.29012744,2728.4,2727.6,0.9164]
[1643710800649,0.33848985,2727.8,2727.6,0.9164]
[1643710800852,2.29012744,2728.4,2727.6,0.9164]
[1643710801053,0.1832,2728.4,2727.7,1.78649251]
[1643710801859,0.1832,2728.4,2727.8,0.91631]
[1643710802057,0.45227143,2728.5,2727.8,0.91631]
[1643710802256,0.45227143,2728.5,2727.8,1.91631]
[1643710802556,0.1832,2728.5,2727.8,1.91631]
[1643710802961,0.1832,2728.5,2727.8,3.7488]
[1643710803155,0.1832,2728.5,2727.8,4.2768]
[1643710803358,0.32791272,2728.5,2727.8,4.2768]
[1643710803758,3.7582,2728.6,2727.8,4.2768]
[1643710803960,3.7582,2728.6,2728.0,0.91622]
[1643710804157,2.4813,2728.7,2728.0,0.91622]
[1643710804389,0.1832,2729.0,2728.0,0.91622]
[1643710804390,0.1832,2729.0,2728.1,0.9162]
[1643710804589,1.54716067,2728.9,2728.1,0.9162]
[1643710804787,1.54716067,2728.9,2728.1,1.9162]
[1643710804992,0.37422068,2728.8,2728.2,0.91617]
[1643710805289,0.37422068,2728.8,2728.2,2.74858]
[1643710806290,0.37422068,2728.8,2728.3,1.0]
[1643710806489,0.37422068,2728.8,2728.4,0.91615]
[1643710806688,0.37422068,2728.8,2728.5,0.91615]
[1643710809151,0.19604962,2729.1,2728.5,0.91615]
[1643710809350,3.7669,2729.2,2728.7,0.91609]
[1643710809554,1.54707888,2729.1,2728.7,0.91609]
[1643710810149,0.42518041,2729.2,2728.7,0.91609]
[1643710810350,0.18205975,2729.4,2728.7,0.91609]
[1643710810550,1.58731915,2729.3,2728.8,1.83194]
[1643710810754,0.04035807,2729.3,2728.8,3.66392]
[1643710811352,0.04035807,2729.3,2728.9,1.09918]
[1643710811551,0.04035807,2729.3,2729.0,0.528]
[1643710811796,0.30530112,2729.5,2729.1,0.1832]
[1643710812099,0.30530112,2729.5,2729.0,0.528]
[1643710812100,0.30530112,2729.5,2729.0,0.7111]
[1643710812294,3.7789,2729.9,2729.0,1.58183927]
[1643710812499,3.7789,2729.9,2729.0,1.88183927]
[1643710812695,1.36495975,2730.1,2729.2,0.9158]
[1643710812999,1.36495975,2730.1,2729.2,2.83797164]
[1643710813000,1.54668831,2730.0,2729.2,2.83797164]
[1643710813399,1.36495975,2730.1,2729.2,2.83797164]
[1643710813400,1.76288978,2730.1,2729.2,2.83797164]
[1643710813596,0.18205975,2730.1,2729.5,0.74366104]
[1643710813798,1.0949773,2730.2,2729.7,0.91565]
[1643710814398,1.0949773,2730.2,2729.7,1.91565]
[1643710814602,1.0949773,2730.2,2729.7,0.91565]
[1643710814797,1.0949773,2730.2,2729.7,1.91565]
[1643710814998,1.0949773,2730.2,2729.7,3.74685]
[1643710815407,0.1831,2731.0,2729.8,6.98492744]
[1643710815667,9.8153,2731.1,2730.1,0.91958498]
[1643710815867,5.24790245,2731.1,2730.2,0.528]
[1643710816064,4.8469,2731.1,2730.2,0.528]
[1643710816263,4.8469,2731.1,2730.2,1.44333]
[1643710816464,4.8469,2731.1,2730.3,1.83069]
[1643710816666,0.1831,2731.0,2730.3,2.35869]
[1643710816967,0.44515207,2730.9,2730.3,3.35869]
[1643710817167,0.44515207,2730.9,2730.3,2.35869]
[1643710817364,5.02895975,2731.1,2730.4,1.0]
[1643710817563,3.78215975,2731.1,2730.3,3.35869]
[1643710817764,3.78215975,2731.1,2730.4,1.0]
[1643710817971,3.78215975,2731.1,2730.3,1.83069]
[1643710818171,1.64919999,2730.2,2729.9,1.0]
[1643710818370,1.64919999,2730.2,2729.8,1.83126]
[1643710819166,1.64919999,2730.2,2729.9,1.83115]
[1643710820002,1.64919999,2730.2,2729.9,2.83115]
[1643710821107,1.64919999,2730.2,2730.0,0.32332694]
[1643710821506,1.64727653,2730.2,2730.0,0.32332694]
[1643710821903,1.64727653,2730.2,2730.1,0.88687475]
[1643710822706,1.64727653,2730.2,2730.1,1.80244475]
[1643710822907,1.64727653,2730.2,2730.1,2.33044475]
[1643710823141,1.64727653,2730.2,2730.1,3.33044475]
[1643710823538,1.64727653,2730.2,2730.1,1.44357]
[1643710823744,1.64727653,2730.2,2730.1,0.91557]
[1643710824746,1.64727653,2730.2,2730.1,1.78039063]
[1643710824948,1.64727653,2730.2,2730.1,2.30839063]
[1643710826044,1.2318,2730.9,2730.1,2.30839063]
[1643710826247,0.1831,2731.0,2730.1,3.30839063]
[1643710826447,3.7832,2731.1,2730.2,0.91538]
[1643710826645,3.7832,2731.1,2730.5,0.91534]
[1643710826646,3.6001,2731.1,2730.5,0.91534]
[1643710826907,1.2409,2731.2,2730.6,0.88232433]
[1643710827104,0.1831,2731.3,2730.7,0.73177951]
[1643710827307,0.1831,2731.3,2730.7,1.25977951]
[1643710827509,0.1831,2731.3,2730.8,0.91534]
[1643710828110,0.1831,2731.3,2730.8,1.8307]
[1643710828311,0.1829,2731.4,2730.8,1.8307]
[1643710830212,0.1829,2731.4,2731.1,0.38852434]
[1643710830414,0.18205975,2731.5,2731.1,0.38852434]
[1643710831254,0.1829,2731.6,2731.1,2.21898434]
[1643710831450,3.8451,2731.7,2731.1,2.74698434]
[1643710831851,0.1829,2732.0,2731.6,0.85162834]
[1643710832061,0.1829,2732.2,2731.6,0.85162834]
[1643710832359,0.1829,2732.2,2731.1,0.528]
[1643710832360,0.17781176,2732.2,2731.1,0.528]
[1643710832562,0.18205975,2732.4,2731.3,0.91515]
[1643710832758,0.18205975,2732.4,2731.0,1.83758851]
[1643710832759,0.9151684,2732.2,2731.0,1.83758851]
[1643710832959,2.47289374,2732.6,2731.0,0.00732851]
[1643710832960,0.36495975,2732.1,2731.0,0.00732851]
[1643710833158,0.36329047,2732.0,2731.1,0.40940849]
[1643710833359,0.1829,2731.9,2731.1,1.09836771]
[1643710833558,0.18205975,2731.8,2731.1,1.09836771]
[1643710833758,0.1829,2731.7,2731.1,1.09836771]
[1643710833957,0.1829,2731.9,2731.1,1.09836771]
[1643710834160,0.9152794,2731.8,2731.1,1.09836771]
[1643710834601,0.3,2731.7,2731.1,1.09836771]
[1643710835902,0.96495975,2732.0,2731.1,4.75878771]
[1643710836101,0.66495975,2732.0,2731.1,5.75878771]
[1643710836304,0.66495975,2732.0,2731.1,4.75878771]
[1643710837203,0.48205975,2732.0,2731.1,4.75878771]
[1643710837608,0.48205975,2732.0,2731.6,0.33554787]
[1643710838059,0.48205975,2732.0,2731.1,4.34937922]
[1643710838452,0.48205975,2732.0,2731.3,0.9151]
[1643710838851,0.78205975,2732.0,2731.3,0.9151]
[1643710839054,0.48205975,2732.0,2731.3,0.9151]
[1643710839254,0.18205975,2732.0,2731.3,0.9151]
[1643710840060,0.4829,2732.2,2731.3,0.9151]
[1643710840268,0.18205975,2732.1,2731.6,0.35391455]
[1643710840463,0.1829,2732.2,2731.6,0.40520759]
[1643710840665,0.18205975,2732.1,2731.6,0.40520759]
[1643710840860,0.1829,2732.2,2731.3,1.8302]
[1643710841060,1.31035975,2732.3,2731.3,1.8302]
[1643710841260,0.1829,2732.2,2731.3,1.8302]
[1643710841460,0.18205975,2732.1,2731.3,1.8302]
[1643710841895,1.31035975,2732.3,2731.5,0.378321]
[1643710842094,0.1829,2732.1,2731.5,0.378321]
[1643710842297,1.1283,2732.3,2731.5,0.378321]
[1643710842298,0.1829,2732.2,2731.5,0.378321]